[Event "Early-Titled-Tuesday-Blitz-January-16-2024"]
[Site "Chess.com"]
[Date "2024.01.16"]
[Round "7"]
[White "bancsoo"]
[Black "HPanesso"]
[Result "1-0"]
[WhiteElo "2940"]
[BlackElo "2657"]
[TimeControl "180+1"]
[EndTime "9:22:53 PST"]
[Termination "bancsoo won on time"]

1. Nf3 {[%clk 0:03:00.9]} 1... c5 {[%clk 0:02:56.7]} 2. c4 {[%clk 0:03:00.6]}
2... Nc6 {[%clk 0:02:56.3]} 3. Nc3 {[%clk 0:03:00.7]} 3... e5 {[%clk 0:02:56.2]}
4. g3 {[%clk 0:03:00.5]} 4... g6 {[%clk 0:02:56.1]} 5. Bg2 {[%clk 0:03:01.2]}
5... Bg7 {[%clk 0:02:56.4]} 6. O-O {[%clk 0:03:01.9]} 6... Nge7 {[%clk
0:02:56.6]} 7. d3 {[%clk 0:03:02.2]} 7... O-O {[%clk 0:02:56.2]} 8. a3 {[%clk
0:03:02.4]} 8... d6 {[%clk 0:02:54.7]} 9. Rb1 {[%clk 0:03:02.7]} 9... a5 {[%clk
0:02:51.6]} 10. Bd2 {[%clk 0:03:03.1]} 10... Bf5 {[%clk 0:02:49.8]} 11. Ne1
{[%clk 0:02:54.4]} 11... Qd7 {[%clk 0:02:46.7]} 12. Nc2 {[%clk 0:02:52.8]} 12...
Bh3 {[%clk 0:02:45.1]} 13. b4 {[%clk 0:02:53.1]} 13... Bxg2 {[%clk 0:02:44.3]}
14. Kxg2 {[%clk 0:02:53.5]} 14... axb4 {[%clk 0:02:44.2]} 15. axb4 {[%clk
0:02:54.4]} 15... b6 {[%clk 0:02:44.1]} 16. b5 {[%clk 0:02:45.5]} 16... Nd4
{[%clk 0:02:43.8]} 17. Ne3 {[%clk 0:02:44.8]} 17... Qb7+ {[%clk 0:02:34.3]} 18.
f3 {[%clk 0:02:44.9]} 18... Bh6 {[%clk 0:02:22.2]} 19. Ned5 {[%clk 0:02:43.8]}
19... Bxd2 {[%clk 0:02:22.4]} 20. Qxd2 {[%clk 0:02:40.5]} 20... f5 {[%clk
0:01:49]} 21. Nxe7+ {[%clk 0:01:58.2]} 21... Qxe7 {[%clk 0:01:48.6]} 22. Nd5
{[%clk 0:01:59]} 22... Qb7 {[%clk 0:01:48.2]} 23. f4 {[%clk 0:01:34.4]} 23... e4
{[%clk 0:01:30.7]} 24. dxe4 {[%clk 0:01:27.5]} 24... fxe4 {[%clk 0:01:31.6]} 25.
e3 {[%clk 0:01:28.1]} 25... Nf5 {[%clk 0:01:30]} 26. Ra1 {[%clk 0:01:20]} 26...
Kf7 {[%clk 0:01:22.5]} 27. Qb2 {[%clk 0:01:15.8]} 27... Ke6 {[%clk 0:01:20.8]}
28. Ra6 {[%clk 0:01:11.5]} 28... Rxa6 {[%clk 0:01:06.8]} 29. bxa6 {[%clk
0:01:11.6]} 29... Qa7 {[%clk 0:01:06.9]} 30. Qb5 {[%clk 0:00:54.1]} 30... Rc8
{[%clk 0:00:53.1]} 31. Rb1 {[%clk 0:00:48.6]} 31... Ne7 {[%clk 0:00:16.3]} 32.
Qxb6 {[%clk 0:00:35.3]} 32... Qxb6 {[%clk 0:00:15.7]} 33. Nxb6 {[%clk 0:00:36]}
33... Rc7 {[%clk 0:00:14.8]} 34. Ra1 {[%clk 0:00:31.9]} 34... Ra7 {[%clk
0:00:14.7]} 35. g4 {[%clk 0:00:32.2]} 35... Nc6 {[%clk 0:00:14.5]} 36. Nc8
{[%clk 0:00:28.2]} 36... Ra8 {[%clk 0:00:10.9]} 37. a7 {[%clk 0:00:28.7]} 37...
Kf7 {[%clk 0:00:08.5]} 38. Ra6 {[%clk 0:00:27.2]} 38... Rxc8 {[%clk 0:00:08.1]}
39. a8=Q {[%clk 0:00:27.3]} 39... Rxa8 {[%clk 0:00:08.5]} 40. Rxa8 {[%clk
0:00:28.1]} 40... Nb4 {[%clk 0:00:09.3]} 41. Ra7+ {[%clk 0:00:23.3]} 41... Ke6
{[%clk 0:00:08.5]} 42. Rxh7 {[%clk 0:00:22.9]} 42... Nc2 {[%clk 0:00:08.5]} 43.
Kf2 {[%clk 0:00:22.8]} 43... Na3 {[%clk 0:00:09.1]} 44. Rh6 {[%clk 0:00:20.3]}
44... Kf7 {[%clk 0:00:05.9]} 45. f5 {[%clk 0:00:20.5]} 45... gxf5 {[%clk
0:00:06.4]} 46. Rxd6 {[%clk 0:00:20.5]} 46... fxg4 {[%clk 0:00:06.7]} 47. Rd5
{[%clk 0:00:19.6]} 47... Nxc4 {[%clk 0:00:06.7]} 48. Rxc5 {[%clk 0:00:20.3]}
48... Nb2 {[%clk 0:00:06.9]} 49. Kg3 {[%clk 0:00:19.6]} 49... Nd1 {[%clk
0:00:06.1]} 50. Kf4 {[%clk 0:00:19.2]} 50... Nf2 {[%clk 0:00:04.6]} 51. Rc2
{[%clk 0:00:18.2]} 1-0

[Event "Early-Titled-Tuesday-Blitz-January-16-2024"]
[Site "Chess.com"]
[Date "2024.01.16"]
[Round "7"]
[White "Jojo_898"]
[Black "GiorgianBarbosa"]
[Result "0-1"]
[WhiteElo "2463"]
[BlackElo "2612"]
[TimeControl "180+1"]
[EndTime "9:22:53 PST"]
[Termination "GiorgianBarbosa won on time"]

1. e4 {[%clk 0:03:00.9]} 1... c5 {[%clk 0:02:56.3]} 2. Nf3 {[%clk 0:02:58.7]}
2... g6 {[%clk 0:02:55.5]} 3. c3 {[%clk 0:02:58.3]} 3... Bg7 {[%clk 0:02:55.2]}
4. d4 {[%clk 0:02:56.7]} 4... cxd4 {[%clk 0:02:56.1]} 5. cxd4 {[%clk 0:02:56.2]}
5... d5 {[%clk 0:02:57]} 6. e5 {[%clk 0:02:54]} 6... Bg4 {[%clk 0:02:57]} 7. Nc3
{[%clk 0:02:49.9]} 7... e6 {[%clk 0:02:56.9]} 8. Bg5 {[%clk 0:02:48.4]} 8... Ne7
{[%clk 0:02:55.6]} 9. Bd3 {[%clk 0:02:42.9]} 9... O-O {[%clk 0:02:54.1]} 10. h3
{[%clk 0:02:41.6]} 10... Bxf3 {[%clk 0:02:52.7]} 11. Qxf3 {[%clk 0:02:42.5]}
11... Nbc6 {[%clk 0:02:52.8]} 12. Qe3 {[%clk 0:02:39.6]} 12... Qb6 {[%clk
0:02:50.1]} 13. O-O {[%clk 0:02:31.3]} 13... Rfe8 {[%clk 0:02:22.4]} 14. Ne2
{[%clk 0:02:06.4]} 14... Rac8 {[%clk 0:02:11.3]} 15. a3 {[%clk 0:01:53.1]} 15...
Na5 {[%clk 0:02:04.9]} 16. b4 {[%clk 0:01:43.4]} 16... Nc4 {[%clk 0:02:03.1]}
17. Qf4 {[%clk 0:01:43.4]} 17... Nc6 {[%clk 0:01:52.6]} 18. Rfc1 {[%clk
0:01:25.4]} 18... Nb2 {[%clk 0:01:49.4]} 19. Bb1 {[%clk 0:01:21.9]} 19... a5
{[%clk 0:01:44.3]} 20. Bf6 {[%clk 0:01:00.5]} 20... axb4 {[%clk 0:01:37.3]} 21.
axb4 {[%clk 0:00:52.6]} 21... Nxb4 {[%clk 0:01:33.8]} 22. Rf1 {[%clk 0:00:29.5]}
22... Qc7 {[%clk 0:01:10]} 23. Ng3 {[%clk 0:00:18.2]} 23... Bxf6 {[%clk
0:01:04]} 24. Qxf6 {[%clk 0:00:17.1]} 24... Qe7 {[%clk 0:01:04.3]} 25. Qf4
{[%clk 0:00:17.7]} 25... N2d3 {[%clk 0:00:59.3]} 26. Qf3 {[%clk 0:00:14.6]}
26... Nb2 {[%clk 0:00:53.1]} 27. Qg4 {[%clk 0:00:13.9]} 27... Kh8 {[%clk
0:00:49.6]} 28. Qf4 {[%clk 0:00:13.7]} 28... Nc4 {[%clk 0:00:45.7]} 29. Qh6
{[%clk 0:00:13.9]} 29... Qf8 {[%clk 0:00:42.3]} 30. Qh4 {[%clk 0:00:13.4]} 30...
Qg7 {[%clk 0:00:39.1]} 31. Ra7 {[%clk 0:00:13]} 31... Rb8 {[%clk 0:00:36.7]} 32.
Qf4 {[%clk 0:00:13.5]} 32... Nc6 {[%clk 0:00:36.2]} 33. h4 {[%clk 0:00:13]}
33... Nxa7 {[%clk 0:00:34.3]} 34. h5 {[%clk 0:00:11.9]} 34... Nc6 {[%clk
0:00:28]} 35. h6 {[%clk 0:00:12.1]} 35... Qf8 {[%clk 0:00:27.3]} 36. Qf6+ {[%clk
0:00:12.8]} 36... Kg8 {[%clk 0:00:27.4]} 37. Nh5 {[%clk 0:00:13.4]} 37... Nb6
{[%clk 0:00:22.6]} 38. Ng7 {[%clk 0:00:10.8]} 38... Nd7 {[%clk 0:00:21.1]} 39.
Qf4 {[%clk 0:00:08.7]} 39... Ne7 {[%clk 0:00:18.7]} 40. Nxe8 {[%clk 0:00:07.2]}
40... Qxe8 {[%clk 0:00:18.6]} 41. Bd3 {[%clk 0:00:08.1]} 41... b5 {[%clk
0:00:16.7]} 42. g4 {[%clk 0:00:03.8]} 42... b4 {[%clk 0:00:16.6]} 43. Rb1 {[%clk
0:00:02.9]} 43... b3 {[%clk 0:00:16.3]} 44. Rb2 {[%clk 0:00:01.6]} 44... Rb4
{[%clk 0:00:14.1]} 0-1

[Event "Early-Titled-Tuesday-Blitz-January-16-2024"]
[Site "Chess.com"]
[Date "2024.01.16"]
[Round "7"]
[White "baki83"]
[Black "Tejas_Rama"]
[Result "0-1"]
[WhiteElo "2858"]
[BlackElo "2606"]
[TimeControl "180+1"]
[EndTime "9:22:54 PST"]
[Termination "Tejas_Rama won by resignation"]

1. e4 {[%clk 0:03:00.9]} 1... e5 {[%clk 0:02:59.9]} 2. Nf3 {[%clk 0:03:00.9]}
2... Nc6 {[%clk 0:03:00.4]} 3. Bb5 {[%clk 0:03:00.7]} 3... Nf6 {[%clk
0:03:00.4]} 4. O-O {[%clk 0:02:59.4]} 4... Nxe4 {[%clk 0:03:00.5]} 5. Re1 {[%clk
0:02:58.7]} 5... Nd6 {[%clk 0:03:00.7]} 6. Nxe5 {[%clk 0:02:59]} 6... Be7 {[%clk
0:03:00.7]} 7. Bf1 {[%clk 0:02:59.3]} 7... Nxe5 {[%clk 0:03:00.6]} 8. Rxe5
{[%clk 0:02:59.2]} 8... O-O {[%clk 0:03:01.3]} 9. d4 {[%clk 0:02:58.6]} 9... Bf6
{[%clk 0:02:53.4]} 10. Re1 {[%clk 0:02:57.4]} 10... Re8 {[%clk 0:02:41.9]} 11.
Nc3 {[%clk 0:02:43.2]} 11... Rxe1 {[%clk 0:02:33.7]} 12. Qxe1 {[%clk 0:02:44.1]}
12... Bxd4 {[%clk 0:02:32.4]} 13. Bf4 {[%clk 0:02:19.8]} 13... Ne8 {[%clk
0:02:21]} 14. Nd5 {[%clk 0:02:15.5]} 14... c6 {[%clk 0:02:21.4]} 15. Ne7+ {[%clk
0:02:13.3]} 15... Kf8 {[%clk 0:02:21.8]} 16. Nxc8 {[%clk 0:02:10.8]} 16... Qf6
{[%clk 0:02:21.9]} 17. Qb4+ {[%clk 0:01:41.3]} 17... c5 {[%clk 0:02:09]} 18. Qd2
{[%clk 0:01:34.3]} 18... Rxc8 {[%clk 0:02:00.5]} 19. c3 {[%clk 0:01:33.7]} 19...
Be5 {[%clk 0:01:22.7]} 20. Bxe5 {[%clk 0:01:33.5]} 20... Qxe5 {[%clk 0:01:22.6]}
21. Qxd7 {[%clk 0:01:31.1]} 21... Rc7 {[%clk 0:01:21.7]} 22. Qd3 {[%clk
0:01:23.3]} 22... g6 {[%clk 0:00:50.6]} 23. Rd1 {[%clk 0:01:22.1]} 23... Re7
{[%clk 0:00:48.5]} 24. g3 {[%clk 0:01:14.3]} 24... Nf6 {[%clk 0:00:45.6]} 25.
Bg2 {[%clk 0:01:14.4]} 25... b6 {[%clk 0:00:43.7]} 26. Bf3 {[%clk 0:01:13.4]}
26... Kg7 {[%clk 0:00:43]} 27. Kg2 {[%clk 0:01:13.6]} 27... Qc7 {[%clk
0:00:37.2]} 28. Qc4 {[%clk 0:01:11]} 28... Nd7 {[%clk 0:00:33.1]} 29. Bd5 {[%clk
0:01:01.7]} 29... Nf6 {[%clk 0:00:29.6]} 30. Bf3 {[%clk 0:01:00.3]} 30... Nd7
{[%clk 0:00:29.2]} 31. Ba8 {[%clk 0:00:56.1]} 31... Nf6 {[%clk 0:00:22.2]} 32.
h4 {[%clk 0:00:53.7]} 32... Qe5 {[%clk 0:00:21.5]} 33. Bf3 {[%clk 0:00:53.3]}
33... Qe6 {[%clk 0:00:17.8]} 34. Qxe6 {[%clk 0:00:53.2]} 34... Rxe6 {[%clk
0:00:18.7]} 35. a4 {[%clk 0:00:51.7]} 35... Re7 {[%clk 0:00:16.7]} 36. a5 {[%clk
0:00:51.3]} 36... Rd7 {[%clk 0:00:15.9]} 37. Ra1 {[%clk 0:00:48.3]} 37... Rd6
{[%clk 0:00:10.7]} 38. Kf1 {[%clk 0:00:35]} 38... Nd7 {[%clk 0:00:09.8]} 39. c4
{[%clk 0:00:31.6]} 39... Ne5 {[%clk 0:00:08.7]} 40. Bd5 {[%clk 0:00:31.8]} 40...
b5 {[%clk 0:00:09]} 41. b3 {[%clk 0:00:26.9]} 41... bxc4 {[%clk 0:00:05.6]} 42.
bxc4 {[%clk 0:00:27.1]} 42... Nd3 {[%clk 0:00:05.7]} 43. Re1 {[%clk 0:00:12.2]}
43... Nxe1 {[%clk 0:00:05.8]} 44. Kxe1 {[%clk 0:00:12.1]} 44... Kf6 {[%clk
0:00:06.5]} 45. Kd2 {[%clk 0:00:12.3]} 45... Ke5 {[%clk 0:00:07.2]} 46. Ke3
{[%clk 0:00:12.9]} 46... Rxd5 {[%clk 0:00:06.5]} 47. f4+ {[%clk 0:00:11.7]}
47... Kd6 {[%clk 0:00:06.3]} 48. cxd5 {[%clk 0:00:12.1]} 48... Kxd5 {[%clk
0:00:07.2]} 49. g4 {[%clk 0:00:11.7]} 49... h5 {[%clk 0:00:06.5]} 50. f5 {[%clk
0:00:10.8]} 50... hxg4 {[%clk 0:00:04.8]} 51. Kf4 {[%clk 0:00:11.2]} 51... c4
{[%clk 0:00:04]} 52. Kxg4 {[%clk 0:00:09]} 52... c3 {[%clk 0:00:04]} 0-1

[Event "Early-Titled-Tuesday-Blitz-January-16-2024"]
[Site "Chess.com"]
[Date "2024.01.16"]
[Round "7"]
[White "Licancabur"]
[Black "mbchess97"]
[Result "1-0"]
[WhiteElo "2505"]
[BlackElo "2332"]
[TimeControl "180+1"]
[EndTime "9:22:57 PST"]
[Termination "Licancabur won on time"]

1. d4 {[%clk 0:03:00.9]} 1... Nf6 {[%clk 0:02:58.9]} 2. Bg5 {[%clk 0:02:59.4]}
2... g6 {[%clk 0:02:57.4]} 3. Bxf6 {[%clk 0:02:57.2]} 3... exf6 {[%clk
0:02:57.4]} 4. e3 {[%clk 0:02:56.9]} 4... Bg7 {[%clk 0:02:57.4]} 5. g3 {[%clk
0:02:56.8]} 5... Nc6 {[%clk 0:02:54.8]} 6. Bg2 {[%clk 0:02:56.4]} 6... b6 {[%clk
0:02:53.1]} 7. Ne2 {[%clk 0:02:54.2]} 7... Bb7 {[%clk 0:02:52.7]} 8. O-O {[%clk
0:02:52.9]} 8... O-O {[%clk 0:02:51.7]} 9. c4 {[%clk 0:02:51.7]} 9... a5 {[%clk
0:02:45.5]} 10. Nbc3 {[%clk 0:02:51.7]} 10... f5 {[%clk 0:02:44.2]} 11. Nf4
{[%clk 0:02:46.2]} 11... Re8 {[%clk 0:02:22.4]} 12. Qd2 {[%clk 0:02:34.4]} 12...
Rb8 {[%clk 0:02:07.5]} 13. Rfd1 {[%clk 0:02:23.5]} 13... Nb4 {[%clk 0:02:05.2]}
14. Bxb7 {[%clk 0:02:03.3]} 14... Rxb7 {[%clk 0:02:05.1]} 15. Ncd5 {[%clk
0:01:54.3]} 15... Nxd5 {[%clk 0:01:51.8]} 16. cxd5 {[%clk 0:01:49.8]} 16... c5
{[%clk 0:01:39.1]} 17. dxc6 {[%clk 0:01:37.7]} 17... dxc6 {[%clk 0:01:39]} 18.
Rac1 {[%clk 0:01:38.2]} 18... c5 {[%clk 0:01:34.5]} 19. dxc5 {[%clk 0:01:34.3]}
19... Qxd2 {[%clk 0:01:33.9]} 20. Rxd2 {[%clk 0:01:34.5]} 20... bxc5 {[%clk
0:01:34.2]} 21. Rxc5 {[%clk 0:01:34.1]} 21... Bxb2 {[%clk 0:01:32.9]} 22. Nd5
{[%clk 0:01:25.6]} 22... a4 {[%clk 0:01:23.1]} 23. h4 {[%clk 0:00:56.7]} 23...
h5 {[%clk 0:01:16.7]} 24. a3 {[%clk 0:00:27.7]} 24... Bxa3 {[%clk 0:00:38.8]}
25. Nf6+ {[%clk 0:00:21.3]} 25... Kf8 {[%clk 0:00:38.5]} 26. Rc4 {[%clk
0:00:12.9]} 26... Re6 {[%clk 0:00:29.6]} 27. Rxa4 {[%clk 0:00:12]} 27... Bc1
{[%clk 0:00:19.9]} 28. Rd7 {[%clk 0:00:11.4]} 28... Rxf6 {[%clk 0:00:18]} 29.
Rxb7 {[%clk 0:00:10.7]} 29... Kg7 {[%clk 0:00:14.6]} 30. Raa7 {[%clk 0:00:11.3]}
30... Bd2 {[%clk 0:00:14.5]} 31. Rd7 {[%clk 0:00:11.6]} 31... Bc3 {[%clk
0:00:14.5]} 32. Rab7 {[%clk 0:00:12.3]} 32... f4 {[%clk 0:00:12.6]} 33. exf4
{[%clk 0:00:11.1]} 33... Rf5 {[%clk 0:00:12.7]} 34. Kf1 {[%clk 0:00:11.1]} 34...
Ba1 {[%clk 0:00:11.7]} 35. Ke2 {[%clk 0:00:12]} 35... Bc3 {[%clk 0:00:11.7]} 36.
Kf3 {[%clk 0:00:12.9]} 36... Ba1 {[%clk 0:00:08.9]} 37. Rd3 {[%clk 0:00:13.8]}
37... Bf6 {[%clk 0:00:08.4]} 38. Ra3 {[%clk 0:00:14.7]} 38... Kg8 {[%clk
0:00:06.8]} 39. Raa7 {[%clk 0:00:15.6]} 39... Bg7 {[%clk 0:00:06.5]} 40. Ke4
{[%clk 0:00:16.5]} 40... Bf8 {[%clk 0:00:06.7]} 41. f3 {[%clk 0:00:16.9]} 41...
Kg7 {[%clk 0:00:05.8]} 42. g4 {[%clk 0:00:16.3]} 42... hxg4 {[%clk 0:00:05.7]}
43. fxg4 {[%clk 0:00:16.3]} 43... Rf6 {[%clk 0:00:06.1]} 44. f5 {[%clk
0:00:16.6]} 44... gxf5+ {[%clk 0:00:05.7]} 45. gxf5 {[%clk 0:00:16.7]} 45... Bc5
{[%clk 0:00:05.4]} 46. Ra5 {[%clk 0:00:14.2]} 46... Bf2 {[%clk 0:00:05.1]} 47.
h5 {[%clk 0:00:12.6]} 47... Kh6 {[%clk 0:00:05.2]} 48. Rd5 {[%clk 0:00:10.5]}
48... Kxh5 {[%clk 0:00:03.4]} 49. Rdd7 {[%clk 0:00:11]} 1-0

[Event "Early-Titled-Tuesday-Blitz-January-16-2024"]
[Site "Chess.com"]
[Date "2024.01.16"]
[Round "7"]
[White "SmirnovTimofey2000"]
[Black "finec2"]
[Result "0-1"]
[WhiteElo "1993"]
[BlackElo "2310"]
[TimeControl "180+1"]
[EndTime "9:22:58 PST"]
[Termination "finec2 won on time"]

1. e4 {[%clk 0:02:58.9]} 1... c5 {[%clk 0:02:59.3]} 2. c3 {[%clk 0:02:59]} 2...
d6 {[%clk 0:02:58.2]} 3. d4 {[%clk 0:02:58.9]} 3... Nf6 {[%clk 0:02:58.4]} 4.
dxc5 {[%clk 0:02:56.3]} 4... Nc6 {[%clk 0:02:55.4]} 5. cxd6 {[%clk 0:02:48.6]}
5... Nxe4 {[%clk 0:02:54.9]} 6. Be3 {[%clk 0:02:25.4]} 6... Nxd6 {[%clk
0:02:52]} 7. Nf3 {[%clk 0:02:21.8]} 7... g6 {[%clk 0:02:51.2]} 8. Be2 {[%clk
0:02:14.6]} 8... Bg7 {[%clk 0:02:50.9]} 9. O-O {[%clk 0:02:14.2]} 9... O-O
{[%clk 0:02:50.6]} 10. Nd4 {[%clk 0:02:08.9]} 10... Ne5 {[%clk 0:02:38.1]} 11.
Nd2 {[%clk 0:01:58.4]} 11... Nf5 {[%clk 0:02:34.5]} 12. Nxf5 {[%clk 0:01:55.9]}
12... Bxf5 {[%clk 0:02:35.4]} 13. Nf3 {[%clk 0:01:52.9]} 13... Qa5 {[%clk
0:02:17]} 14. Nd4 {[%clk 0:01:30.4]} 14... Be4 {[%clk 0:02:13.8]} 15. Bf3 {[%clk
0:01:20.4]} 15... Nxf3+ {[%clk 0:02:08.4]} 16. Nxf3 {[%clk 0:01:20]} 16... Rfd8
{[%clk 0:02:00.3]} 17. Qe2 {[%clk 0:01:18.6]} 17... Bd3 {[%clk 0:01:59.8]} 18.
Qe1 {[%clk 0:01:14.8]} 18... Bxf1 {[%clk 0:01:58.3]} 19. Qxf1 {[%clk 0:01:15.7]}
19... Qd5 {[%clk 0:01:51.5]} 20. Nd4 {[%clk 0:01:11.7]} 20... e5 {[%clk
0:01:45.6]} 21. Nb3 {[%clk 0:01:03.2]} 21... b6 {[%clk 0:01:35.5]} 22. h3 {[%clk
0:00:57.6]} 22... Qd3 {[%clk 0:01:33]} 23. Qe1 {[%clk 0:00:49.8]} 23... Qc2
{[%clk 0:01:24.4]} 24. Rb1 {[%clk 0:00:46.7]} 24... Rd7 {[%clk 0:01:19.9]} 25.
Qc1 {[%clk 0:00:40.3]} 25... Qxc1+ {[%clk 0:01:18]} 26. Rxc1 {[%clk 0:00:40.3]}
26... Rad8 {[%clk 0:01:16.5]} 27. Kf1 {[%clk 0:00:37.5]} 27... Rd1+ {[%clk
0:01:13.3]} 28. Rxd1 {[%clk 0:00:38.2]} 28... Rxd1+ {[%clk 0:01:12.2]} 29. Ke2
{[%clk 0:00:38.7]} 29... Rd7 {[%clk 0:01:10.2]} 30. f4 {[%clk 0:00:34.4]} 30...
exf4 {[%clk 0:01:07]} 31. Bxf4 {[%clk 0:00:34.8]} 31... Re7+ {[%clk 0:01:00]}
32. Kf3 {[%clk 0:00:33.3]} 32... Be5 {[%clk 0:00:58.4]} 33. Bg5 {[%clk
0:00:30.4]} 33... f6 {[%clk 0:00:56.8]} 34. Be3 {[%clk 0:00:30]} 34... Kf7
{[%clk 0:00:52]} 35. Nd4 {[%clk 0:00:25.5]} 35... Bxd4 {[%clk 0:00:40]} 36. Bxd4
{[%clk 0:00:25.6]} 36... f5 {[%clk 0:00:38.7]} 37. a4 {[%clk 0:00:22.6]} 37...
Re4 {[%clk 0:00:27.8]} 38. a5 {[%clk 0:00:19.6]} 38... bxa5 {[%clk 0:00:27.8]}
39. Bxa7 {[%clk 0:00:19.7]} 39... a4 {[%clk 0:00:27.4]} 40. Bc5 {[%clk
0:00:19.4]} 40... Ke6 {[%clk 0:00:27.1]} 41. g4 {[%clk 0:00:17.9]} 41... Kd5
{[%clk 0:00:24.8]} 42. gxf5 {[%clk 0:00:15.7]} 42... gxf5 {[%clk 0:00:22.6]} 43.
Ba3 {[%clk 0:00:14.8]} 43... Kc4 {[%clk 0:00:21.8]} 44. Kg3 {[%clk 0:00:11.7]}
44... Kb3 {[%clk 0:00:19.9]} 45. Kf3 {[%clk 0:00:11.3]} 45... h5 {[%clk
0:00:18.2]} 46. Kg3 {[%clk 0:00:10.8]} 46... Re2 {[%clk 0:00:15.7]} 47. Kf4
{[%clk 0:00:08.2]} 47... Rxb2 {[%clk 0:00:15.2]} 48. c4 {[%clk 0:00:01.4]} 48...
Kxa3 {[%clk 0:00:13]} 49. c5 {[%clk 0:00:01.4]} 49... Rc2 {[%clk 0:00:12.7]} 0-1

[Event "Early-Titled-Tuesday-Blitz-January-16-2024"]
[Site "Chess.com"]
[Date "2024.01.16"]
[Round "7"]
[White "Willi_Skibbe"]
[Black "HATilay"]
[Result "0-1"]
[WhiteElo "2403"]
[BlackElo "2575"]
[TimeControl "180+1"]
[EndTime "9:23:02 PST"]
[Termination "HATilay won on time"]

1. d4 {[%clk 0:03:00.9]} 1... Nf6 {[%clk 0:03:00]} 2. Nf3 {[%clk 0:03:00]} 2...
c5 {[%clk 0:02:59.9]} 3. e3 {[%clk 0:02:57]} 3... e6 {[%clk 0:02:56.9]} 4. Bd3
{[%clk 0:02:52.3]} 4... Nc6 {[%clk 0:02:56.6]} 5. O-O {[%clk 0:02:51.7]} 5...
Be7 {[%clk 0:02:56.9]} 6. b3 {[%clk 0:02:51.6]} 6... O-O {[%clk 0:02:56.9]} 7.
Bb2 {[%clk 0:02:51.7]} 7... d5 {[%clk 0:02:57.4]} 8. a3 {[%clk 0:02:50]} 8... b6
{[%clk 0:02:57.4]} 9. Nbd2 {[%clk 0:02:47.7]} 9... Bb7 {[%clk 0:02:57.8]} 10.
Ne5 {[%clk 0:02:47.8]} 10... Rc8 {[%clk 0:02:55.8]} 11. f4 {[%clk 0:02:31.1]}
11... b5 {[%clk 0:02:37.9]} 12. Bxb5 {[%clk 0:01:48.6]} 12... Qb6 {[%clk
0:02:37.7]} 13. Bd3 {[%clk 0:01:31.5]} 13... cxd4 {[%clk 0:02:15.2]} 14. Nxc6
{[%clk 0:01:30.3]} 14... Qxc6 {[%clk 0:02:15.7]} 15. Bxd4 {[%clk 0:01:27.8]}
15... a5 {[%clk 0:01:27.6]} 16. Nf3 {[%clk 0:01:18.2]} 16... Qc7 {[%clk
0:01:10.1]} 17. Qe1 {[%clk 0:00:59.3]} 17... Ne4 {[%clk 0:00:59]} 18. Nd2 {[%clk
0:00:51.7]} 18... f5 {[%clk 0:00:51.4]} 19. Nxe4 {[%clk 0:00:40.9]} 19... fxe4
{[%clk 0:00:49.5]} 20. Bb5 {[%clk 0:00:26.2]} 20... Bc6 {[%clk 0:00:25.1]} 21.
Bxc6 {[%clk 0:00:17.3]} 21... Qxc6 {[%clk 0:00:26]} 22. Qxa5 {[%clk 0:00:17.6]}
22... Qxc2 {[%clk 0:00:25.2]} 23. b4 {[%clk 0:00:11.5]} 23... Bf6 {[%clk
0:00:21.4]} 24. Qb6 {[%clk 0:00:07.5]} 24... Rc6 {[%clk 0:00:20]} 25. Qa7 {[%clk
0:00:05.5]} 25... Rc4 {[%clk 0:00:15.9]} 26. Bxf6 {[%clk 0:00:04.1]} 26... Rxf6
{[%clk 0:00:15.9]} 27. Rf2 {[%clk 0:00:04.7]} 27... Qc3 {[%clk 0:00:15.3]} 28.
Raf1 {[%clk 0:00:03]} 28... d4 {[%clk 0:00:15.4]} 29. exd4 {[%clk 0:00:02.8]}
29... e3 {[%clk 0:00:15.8]} 30. Re2 {[%clk 0:00:02.4]} 30... Qd3 {[%clk
0:00:15.5]} 31. Rfe1 {[%clk 0:00:02.3]} 31... Rxf4 {[%clk 0:00:12.4]} 32. Qb8+
{[%clk 0:00:02.6]} 32... Rf8 {[%clk 0:00:12]} 33. Qe5 {[%clk 0:00:03.2]} 33...
Rxd4 {[%clk 0:00:10.5]} 34. Qxe6+ {[%clk 0:00:03.4]} 34... Kh8 {[%clk
0:00:09.1]} 35. Qxe3 {[%clk 0:00:04.3]} 35... Qc4 {[%clk 0:00:08.3]} 36. Rf2
{[%clk 0:00:04.8]} 36... Rg8 {[%clk 0:00:07.6]} 37. Qe6 {[%clk 0:00:03.7]} 37...
Qxe6 {[%clk 0:00:03.3]} 38. Rxe6 {[%clk 0:00:03.6]} 38... Rd3 {[%clk 0:00:04.2]}
39. Rf3 {[%clk 0:00:03.9]} 39... Rd1+ {[%clk 0:00:04]} 40. Kf2 {[%clk
0:00:04.4]} 40... Rd2+ {[%clk 0:00:04.6]} 41. Kg3 {[%clk 0:00:04.9]} 41... Rgd8
{[%clk 0:00:03.9]} 42. Re7 {[%clk 0:00:04.2]} 42... h5 {[%clk 0:00:03.6]} 43.
Ref7 {[%clk 0:00:03]} 43... R8d6 {[%clk 0:00:03.4]} 44. R7f5 {[%clk 0:00:02.6]}
44... Rg6+ {[%clk 0:00:02.5]} 0-1